Cogmind - Beta 15 @@@ ROGUE MODE // 2025.10.20 @ 19:48:08 Player: Runagate Result: Self-destructed Performance ------------- Evolutions (2) 1000 Regions Visited (6) 1200 Robots Destroyed (65) 325 Value Destroyed (2616) 2616 Prototype IDs (1) 20 Alien Tech Used (0) 0 Bonus (990) 990 TOTAL SCORE: 6151 Bonus ------- High Alert Combat Kills 55 Follower Combat Kills 35 Entered Garrisons 400 Used RIF Installer 500 Cogmind --------- Core Integrity 41/550 Matter 300/300 Energy 250/250 System Corruption 1% Temperature Warm (102) Movement Walking (330) Ox3 Location -8/Garrison Parts ------- > --- POWER (1) -------- Ion Engine > --- PROPULSION (4) --- Aluminum Leg > --- UTILITY (3) ------ Large Storage Unit Relay Coupler [Swarmer] (22) Relay Coupler [Grunt] (18) > --- WEAPON (3) ------- Beam Rifle Advanced Beam Rifle Improved Datajack > --- INVENTORY (15) --- Light Nuclear Core Heat Sink Heat Sink Improved Heat Sink Improved Heat Sink Improved Heat Sink Improved Heat Sink Relay Coupler [NC] (27) Relay Coupler [NC] (27) Relay Coupler [Sentry] (23) Medium Laser Beam Rifle Beam Rifle Particle Gun Maul Peak State ------------ > --- POWER ------------ Fission Core > --- PROPULSION ------- Aluminum Leg Aluminum Leg Aluminum Leg Improved Aluminum Leg > --- UTILITY ---------- Improved Heat Sink Improved Heat Sink Large Storage Unit > --- WEAPON ----------- Particle Gun Advanced Beam Rifle Heavy Assault Rifle > --- INVENTORY -------- Ion Engine Light Nuclear Core Heat Sink Heat Sink Relay Coupler [NC] Relay Coupler [NC] Relay Coupler [Swarmer] Relay Coupler [Grunt] Relay Coupler [Sentry] Medium Laser Beam Rifle Beam Rifle Beam Rifle Improved Datajack Maul [Rating: 28] Favorites ----------- Power Ion Engine Engine Ion Engine Power Core Fission Core Propulsion Aluminum Leg Treads Light Treads Leg Aluminum Leg Utility Seismic Detector Device Seismic Detector Storage Large Storage Unit Hackware Relay Coupler [Grunt] Protection Light Armor Plating Weapon Heavy Assault Rifle Energy Gun Medium Laser Energy Cannon Beam Cannon Ballistic Gun Heavy Assault Rifle Impact Weapon Maul Special Melee Weapon Improved Datajack Build | -11 -10 -10 -8 -8 -8 -8 ------- Run | Yrd Mat Sub Mat Gar Mat Gar Slots Evolved 4 | . . . 4 . . . Power . | . . . . . . . Propulsion 2 | . . . 2 . . . Utility 1 | . . . 1 . . . Weapon 1 | . . . 1 . . . Parts Attached 67 | 10 17 . 1 18 14 7 Power 8 | 1 3 . . 3 1 . Engine 7 | 1 3 . . 3 . . Core 1 | . . . . . 1 . Reactor . | . . . . . . . Propulsion 22 | 2 6 . . 8 5 1 Treads 3 | . . . . 2 1 . Leg 19 | 2 6 . . 6 4 1 Wheel . | . . . . . . . Hover . | . . . . . . . Flight . | . . . . . . . Utility 19 | 4 4 . 1 2 4 4 Device 12 | 3 2 . . 1 4 2 Storage 4 | 1 2 . 1 . . . Processor . | . . . . . . . Hackware 2 | . . . . . . 2 Protection 1 | . . . . 1 . . Artifact . | . . . . . . . Weapon 18 | 3 4 . . 5 4 2 Energy Gun 9 | 2 1 . . 2 3 1 Energy Cannon 1 | . 1 . . . . . Ballistic Gun 6 | 1 1 . . 3 1 . Ballistic Cannon . | . . . . . . . Launcher . | . . . . . . . Special Weapon . | . . . . . . . Impact Weapon 1 | . 1 . . . . . Slashing Weapon . | . . . . . . . Piercing Weapon . | . . . . . . . Special Melee Weapon 1 | . . . . . . 1 Unidentified Prototypes 1 | . . . . . 1 . Parts Lost 29 | . 1 . . 14 8 6 Power 4 | . 1 . . 1 1 1 Propulsion 13 | . . . . 6 3 4 Utility 4 | . . . . 1 3 . Weapon 8 | . . . . 6 1 1 Highest Loss Streak 7 | . 1 . . 7 6 3 To Critical Strikes 1 | . . . . . 1 . Average Backups 9 | 1 8 10 7 10 14 14 Power . | . . . . 1 1 1 Propulsion 1 | . 1 2 . 1 . . Utility 3 | . 1 2 1 3 6 7 Weapon 4 | . 4 6 6 4 5 5 Tool/Special . | . . . . . . . Unused Backups 10 | . 2 . . 1 1 6 Power . | . . . . . . . Propulsion . | . . . . . . . Utility 5 | . . . . 1 . 4 Weapon 5 | . 2 . . . 1 2 Tool/Special . | . . . . . . . Average Slot Usage (%) 95 | . 99 100 85 94 90 90 Engine 10 | . 13 14 9 8 6 6 Treads 2 | . . . . 2 14 . Leg 28 | . 27 28 33 33 18 28 Device 14 | . 14 14 13 14 15 9 Storage 11 | . 14 14 11 9 9 9 Energy Gun 7 | . 10 . . 4 7 14 Energy Cannon 2 | . 3 14 9 2 . . Ballistic Gun 12 | . 13 14 9 11 14 4 Impact Weapon 2 | . . . . 6 3 . Peak Build Rating 28 | 7 10 9 12 23 28 28 Average Rating 13 | 6 8 9 11 18 17 22 On Entrance 11 | . 7 9 9 11 19 28 Naked Turns . | . . . . . . . Heaviest Build 40 | 15 22 22 33 39 40 40 Greatest Support 60 | 20 20 20 40 53 60 43 Greatest Overweight (x) 8 | 1 1 1 . 1 8 1 Average Overweight (x) . | . . 1 . . . . Largest Inventory Capacity 15 | 8 15 10 15 15 15 15 Average Capacity 12 | 7 9 10 14 15 15 15 Most Carried 15 | 4 10 10 9 15 15 15 Average Carried 9 | 2 8 10 6 10 14 14 Final Capacity 15 | 8 10 10 15 15 15 15 Final Carried 15 | 3 10 10 6 15 15 15 Class Distribution -------------------- 54% | Scavenger-Mutant 30% | Mutant 8% | Scavenger-Gunner 3% | Bothacker-Mutant Dominant Class ---------------- Mutant | -10/Materials Scavenger-Mutant | -10/Subcaves Scavenger-Mutant | -8/Materials Scavenger-Mutant | -8/Garrison Scavenger-Mutant | -8/Materials Bothacker-Mutant | -8/Garrison Resources | -11 -10 -10 -8 -8 -8 -8 ----------- Run | Yrd Mat Sub Mat Gar Mat Gar Matter Collected 1835 | 368 392 57 . 532 395 91 Remotely 322 | . . . . . 322 . Salvage Created 2515 | 233 691 54 . 738 648 151 Parts 150 | 22 47 2 . 39 30 10 Haulers Intercepted 1 | . 1 . . . . . Recyclers Shooed 6 | . 1 . . . 5 . Parts Field Recycled . | . . . . . . . Retrieved Matter . | . . . . . . . Parts Self-Destructed . | . . . . . . . Prevented . | . . . . . . . Kills | -11 -10 -10 -8 -8 -8 -8 ------- Run | Yrd Mat Sub Mat Gar Mat Gar Combat Hostiles Destroyed 42 | . 11 1 . 18 8 4 Melee 3 | . . . . 3 . . Guns 34 | . 10 1 . 11 8 4 Cannons 3 | . . . . 3 . . AOE 1 | . 1 . . . . . Classes Destroyed 16 | 3 6 1 . 3 2 1 Worker 4 | 2 1 . . . 1 . Builder 3 | . 3 . . . . . Tunneler 7 | 5 2 . . . . . Hauler 1 | . 1 . . . . . Recycler 4 | 1 1 . . . 2 . Mechanic 1 | . 1 . . . . . Operator 1 | . . . . . 1 . Watcher 2 | . 2 . . . . . Swarmer 8 | . 3 . . 4 . 1 Grunt 19 | . 8 . . 5 5 1 Duelist 2 | . . . . 2 . . Sentry 7 | . . . . 6 1 . Demolisher 1 | . . . . 1 . . Hunter 2 | . . . . . 2 . Programmer 2 | . . . . . . 2 Subdweller 1 | . . 1 . . . . Best Kill Streak 8 | 3 6 1 . 4 8 2 Combat Bots Only 5 | . 4 1 . 4 5 2 Max Kills in Single Turn 2 | 2 2 1 . 1 1 1 Gunslinging . | . . . . . . . Exploded 1 | . 1 . . . . . Melee 1 | . . . . 1 . . Uniques/NPCs Destroyed . | . . . . . . . Combat | -11 -10 -10 -8 -8 -8 -8 -------- Run | Yrd Mat Sub Mat Gar Mat Gar Hostile Shots Fired 312 | . 50 2 . 121 74 65 Missed 75 | . 7 1 . 27 17 23 Hits 237 | . 43 1 . 94 57 42 Melee 4 | . . . . 4 . . Projectile 233 | . 43 1 . 90 57 42 AOE 10 | . . 1 . 9 . . Critical Strikes 6 | . . . . 2 1 3 Part Disruptions 1 | . . . . . . 1 Damage Taken 3794 | . 535 62 . 1509 947 741 Core 597 | . 88 . . 245 126 138 Absorbed by Shields . | . . . . . . . Regen/Repaired (Parts) 37 | . 37 . . . . . Core Remaining (%) 82 | 100 . 64 . . . . Volleys Fired 207 | 16 58 3 . 70 42 18 Largest 3 | 2 2 2 . 3 3 2 Hottest 149 | 70 83 83 . 133 149 117 Shots Fired 446 | 32 116 6 . 149 110 33 Gun 415 | 32 115 3 . 122 110 33 Cannon 31 | . 1 3 . 27 . . Launcher . | . . . . . . . Special . | . . . . . . . Kinetic 243 | 16 58 3 . 86 73 7 Thermal 175 | 13 49 3 . 47 37 26 Explosive . | . . . . . . . Electromagnetic 28 | 3 9 . . 16 . . Robot Hit Streak 14 | 5 12 4 . 14 14 4 Robot Miss Streak 4 | 3 4 1 . 3 3 3 Penetration Max . | . . . . . . . Secondary Targets 4 | . 1 . . . 3 . Max Gunslinging Chain 1 | . 1 . . . 1 . Shots Hit Robots 293 | 19 78 5 . 91 76 24 Core Hits 109 | 9 31 2 . 31 30 6 Critical Kills 1 | . . . . . 1 . Critical Parts Destroyed 4 | . . . . 4 . . Critical Strikes 9 | . 2 . . 5 2 . Burn 4 | . 2 . . 1 1 . Destroy 1 | . . . . . 1 . Smash 4 | . . . . 4 . . Melee Attacks 31 | . 3 . . 17 . 11 Impact 20 | . 3 . . 17 . . Slashing . | . . . . . . . Piercing . | . . . . . . . Sneak Attacks . | . . . . . . . Combat Hostiles . | . . . . . . . Follow-up Attacks . | . . . . . . . Damage Inflicted 4673 | 239 1182 82 . 1614 1070 486 Guns 3848 | 239 1093 30 . 934 1066 486 Cannons 317 | . 18 52 . 247 . . Explosions 55 | . 55 . . . . . Melee 433 | . . . . 433 . . Ramming 20 | . 16 . . . 4 . Kinetic 2217 | 163 584 30 . 670 684 86 Thermal 1795 | 51 478 52 . 432 382 400 Explosive . | . . . . . . . Electromagnetic 208 | 25 104 . . 79 . . Impact 433 | . . . . 433 . . Slashing . | . . . . . . . Piercing . | . . . . . . . Highest Corruption 1 | . . . . . . 1 Average Corruption 1 | . . . . . . 1 Corruption Purged . | . . . . . . . Corruption Blocked . | . . . . . . . Effects 1 | . . . . . . 1 Message Errors 1 | . . . . . . 1 Overload Shots . | . . . . . . . Overflow Damage 213 | . . . . 213 . . Projectiles . | . . . . . . . Explosions . | . . . . . . . Melee 213 | . . . . 213 . . Knockbacks 2 | . . . . 2 . . Impact 2 | . . . . 2 . . Kinetic . | . . . . . . . Secondary . | . . . . . . . Self-Inflicted Damage . | . . . . . . . Shots . | . . . . . . . Rammed . | . . . . . . . Targets Rammed 6 | . 4 . . . 2 . Kicked 6 | . 4 . . . 2 . Crushed . | . . . . . . . Highest Temperature 156 | 18 150 . . 156 70 102 Average Temperature 36 | 10 40 . . 41 34 60 Received Heat Transfer 882 | . 252 . . 342 270 18 Siege Activations . | . . . . . . . Martial Activations . | . . . . . . . Shielding Activations . | . . . . . . . Robots Disrupted . | . . . . . . . Combat Hostiles . | . . . . . . . Robots Corrupted 1 | . . . . 1 . . Combat Hostiles 1 | . . . . 1 . . Parts Fried 1 | . . . . 1 . . Impact Corruptions 9 | . . . . 9 . . Robots Melted . | . . . . . . . Combat Hostiles . | . . . . . . . Parts Melted 7 | . 2 . . 1 2 2 Heat Transferred 4577 | 148 1432 111 . 1073 1147 666 Parts Sabotaged . | . . . . . . . Parts Stolen . | . . . . . . . Parts Stripped . | . . . . . . . Power Chain Reactions 1 | . 1 . . . . . Alert | -11 -10 -10 -8 -8 -8 -8 ------- Run | Yrd Mat Sub Mat Gar Mat Gar Maximum Alert Level 2 | . . . . 2 1 1 Low Security (%) 61 | 100 100 . 100 19 . 98 Level 1 25 | . . . . 37 100 1 Level 2 13 | . . . . 42 . . Level 3 . | . . . . . . . Level 4 . | . . . . . . . Level 5 . | . . . . . . . High Security . | . . . . . . . Max Security . | . . . . . . . Peak Influence 648 | 10 144 . . 648 392 208 Initial 315 | . . . . . 315 178 Average 188 | 2 43 . . 377 310 184 Influence Increases 1615 | 40 395 . . 788 302 90 Destroy 0b10 Robot/C 840 | . 220 . . 360 180 80 Destroy 0b10 Robot/NC 125 | 40 55 . . . 30 . Destroy Leader 138 | . 56 . . 20 52 10 Allied During Kill 3 | . . . . . 3 . Successful Hack 73 | . 24 . . 49 . . Disable Machine 30 | . 15 . . . 15 . Anti-Garrison Action 200 | . . . . 200 . . Destroy Structure 86 | . 10 . . 69 7 . Lose Combat Pursuer 120 | . 15 . . 90 15 . Influence Decreases 1407 | 40 363 32 . 140 675 157 Entered New Map 446 | . . 16 . . 333 97 Time Decay 631 | 40 353 16 . . 222 . Lost Part 290 | . 10 . . 140 80 60 Lost Ally 40 | . . . . . 40 . Squads Dispatched 3 | . 2 . . . 1 . Investigation 1 | . 1 . . . . . Extermination . | . . . . . . . Reinforcement 2 | . 1 . . . 1 . Assault . | . . . . . . . Garrison . | . . . . . . . Intercept . | . . . . . . . Searches Triggered . | . . . . . . . Construction Impeded . | . . . . . . . Haulers Reinforced . | . . . . . . . Active Scanning Responses . | . . . . . . . Cargo Convoy Interrupts . | . . . . . . . Stealth | -11 -10 -10 -8 -8 -8 -8 --------- Run | Yrd Mat Sub Mat Gar Mat Gar Distress Signals 2 | . . . . . 2 . Communications Jammed . | . . . . . . . Distress Signals . | . . . . . . . Times Spotted 73 | . 21 2 . 25 15 10 Peak Tracking Total 5 | . 4 2 . 4 5 5 Tactical Retreats 6 | . 1 . . 4 1 . Traps | -11 -10 -10 -8 -8 -8 -8 ------- Run | Yrd Mat Sub Mat Gar Mat Gar Traps Triggered 4 | . 2 . . 1 . 1 Indirectly . | . . . . . . . Trap Hack Attempts . | . . . . . . . Triggered . | . . . . . . . Disarmed . | . . . . . . . Reprogrammed . | . . . . . . . Reused . | . . . . . . . Traps Extracted . | . . . . . . . Installed . | . . . . . . . Triggered . | . . . . . . . Machines | -11 -10 -10 -8 -8 -8 -8 ---------- Run | Yrd Mat Sub Mat Gar Mat Gar Machines Disabled 7 | . 1 . . 5 1 . Max in Single Turn 2 | . 1 . . 2 1 . Garrison Relay 3 | . . . . 3 . . Phase Generator 1 | . . . . 1 . . Machines Repaired . | . . . . . . . Machines Dismantled . | . . . . . . . Machines Sabotaged . | . . . . . . . Overloaded Fab Kills . | . . . . . . . Hacking | -11 -10 -10 -8 -8 -8 -8 --------- Run | Yrd Mat Sub Mat Gar Mat Gar Machines Accessed 12 | . 6 . 1 4 1 . Terminals 9 | . 5 . . 4 . . Fabricators . | . . . . . . . Repair Stations 1 | . 1 . . . . . Recycling Units . | . . . . . . . Scanalyzers . | . . . . . . . Garrison Access 2 | . . . 1 . 1 . Total Hacks 25 | . 18 . 1 5 1 . Successful 14 | . 8 . 1 4 1 . Failed 11 | . 10 . . 1 . . Catastrophic . | . . . . . . . Database Lockouts . | . . . . . . . Manual 12 | . 12 . . . . . Terminals 17 | . 12 . . 5 . . Fabricators . | . . . . . . . Repair Stations 6 | . 6 . . . . . Recycling Units . | . . . . . . . Scanalyzers . | . . . . . . . Garrison Access 2 | . . . 1 . 1 . Terminal Hacks 4 | . . . . 4 . . Open Door 1 | . . . . 1 . . Emergency Access Points 1 | . . . . 1 . . Garrison Registry 1 | . . . . 1 . . Patrol Navigation 1 | . . . . 1 . . Fabricator Hacks . | . . . . . . . Repair Station Hacks 4 | . 4 . . . . . Scan Component 2 | . 2 . . . . . Repair 2 | . 2 . . . . . Recycling Unit Hacks . | . . . . . . . Scanalyzer . | . . . . . . . Garrison Access Hacks 2 | . . . 1 . 1 . Unlock Access 2 | . . . 1 . 1 . Unauthorized Hacks 4 | . 4 . . . . . Terminals 4 | . 4 . . . . . Skim 4 | . 4 . . . . . Fabricators . | . . . . . . . Repair Stations . | . . . . . . . Recycling Units . | . . . . . . . Scanalyzers . | . . . . . . . Garrison Access . | . . . . . . . Data Cores Recovered . | . . . . . . . Used . | . . . . . . . Hacking Detections 9 | . 6 . 1 2 . . Full Trace Events . | . . . . . . . Feedback Events . | . . . . . . . Feedback Blocked . | . . . . . . . Robot Schematics Acquired . | . . . . . . . Robots Built . | . . . . . . . Authchips . | . . . . . . . Time . | . . . . . . . Total Robot Build Rating . | . . . . . . . Part Schematics Acquired . | . . . . . . . Parts Built . | . . . . . . . Authchips . | . . . . . . . Time . | . . . . . . . Total Part Build Rating . | . . . . . . . Parts Repaired 2 | . 2 . . . . . Time 52 | . 52 . . . . . Parts Recycled . | . . . . . . . Recycled Matter . | . . . . . . . Retrieved Matter . | . . . . . . . Retrieved Components . | . . . . . . . Parts Scanalyzed . | . . . . . . . Part Schematics Acquired . | . . . . . . . Parts Damaged . | . . . . . . . Bothacking | -11 -10 -10 -8 -8 -8 -8 ------------ Run | Yrd Mat Sub Mat Gar Mat Gar Used RIF Installer 1 | . . . . 1 . . Robots Hacked 2 | . . . . . . 2 Non-combat . | . . . . . . . Combat 2 | . . . . . . 2 Robot Hacks Applied 2 | . . . . . . 2 amplify_resonance 2 | . . . . . . 2 Relay Couplers Released 14 | . . . . 14 . . Machine Destruction 14 | . . . . 14 . . Attached 2 | . . . . . . 2 Fabnet Peak Effective % . | . . . . . . . Robots Rewired . | . . . . . . . Allies Hacked . | . . . . . . . Hacks Repelled . | . . . . . . . Allies | -11 -10 -10 -8 -8 -8 -8 -------- Run | Yrd Mat Sub Mat Gar Mat Gar Total Allies 2 | . . . . 2 . . Largest Group 2 | . . . . 2 2 . Highest-Rated Group 59 | . . . . 59 59 . Highest-Rated Ally 39 | . . . . 39 39 . Total Orders . | . . . . . . . Ally Attacks 13 | . . . . . 13 . Total Damage 165 | . . . . . 165 . Kills 3 | . . . . . 3 . Allies Corrupted . | . . . . . . . Allies Melted . | . . . . . . . Intel | -11 -10 -10 -8 -8 -8 -8 ------- Run | Yrd Mat Sub Mat Gar Mat Gar Active Infowar (turns) 2589 | 119 1190 111 20 1011 138 . Seismic 2589 | 119 1190 111 20 1011 138 . Robot Analysis Total . | . . . . . . . Derelict Logs Recovered . | . . . . . . . Drone Launches . | . . . . . . . Drone Recoveries . | . . . . . . . Exploration | -11 -10 -10 -8 -8 -8 -8 ------------- Run | Yrd Mat Sub Mat Gar Mat Gar Turns Passed 3455 | 191 1443 142 25 1011 472 171 Spaces Moved 1796 | 100 811 70 17 534 198 66 Core 15 | 9 . . . . 6 . Treads 165 | . . . . 66 99 . Legs 1616 | 91 811 70 17 468 93 66 Wheels . | . . . . . . . Hover . | . . . . . . . Flight . | . . . . . . . Fastest Speed 50 | 50 120 190 120 120 120 120 Average Speed 137 | 116 140 190 120 125 152 147 Slowest Speed 450 | 120 190 190 120 240 450 190 Overloaded Moves . | . . . . . . . Propulsion Burnouts . | . . . . . . . Robots Hopped . | . . . . . . . Potential Cave-ins . | . . . . . . . Cave-ins Triggered . | . . . . . . . Exploration Rate (%) 30 | 6 100 8 4 67 17 11 Regions Visited 6 Branch Regions 1 Pre-discovered Areas . | . . . . . . . Known Exits Taken 2 | . . . 1 . 1 . Unknown Exits Taken 3 | 1 1 1 . . . . Scrap Searched . | . . . . . . . Spaces Dug 3 | . 3 . . . . . Terrain Destroyed 83 | . 9 . . 74 . . Melee 3 | . 3 . . . . . Projectile . | . . . . . . . AOE 80 | . 6 . . 74 . . Terrain Rammed . | . . . . . . . Walls Destroyed . | . . . . . . . Machines Disabled . | . . . . . . . Actions | -11 -10 -10 -8 -8 -8 -8 --------- Run | Yrd Mat Sub Mat Gar Mat Gar Total 2315 | 136 1003 73 22 703 275 103 Wait 114 | 6 65 . . 32 11 . Move 1789 | 99 810 69 16 532 197 66 Hop . | . . . . . . . Pick Up 34 | 2 16 . . 14 2 . Fast Attach 20 | 7 1 . . 5 6 1 Attach 20 | . 1 . 4 11 2 2 Detach 1 | . . . 1 . . . Swap 59 | 5 25 1 . 14 9 5 Drop 29 | 1 20 . 1 3 4 . Fire 207 | 16 58 3 . 70 42 18 Melee 31 | . 3 . . 17 . 11 Ram . | . . . . . . . Kick 6 | . 4 . . . 2 . Crush . | . . . . . . . Escape Stasis 5 | . . . . 5 . . Rewire . | . . . . . . . Trap . | . . . . . . . Miscellaneous . | . . . . . . . Route ------- -11/Scrapyard -10/Materials (discovered 5 exits: [*Mat x3] / [*Min] / [*Sub]) -10/Subcaves -8/Materials -8/Garrison (discovered 3 exits: *Mat x3) -8/Materials -8/Garrison History --------- Turn | Location | Event 8 | -11/Scrapyard | Discovered new exit (range 16) 192 | -11/Scrapyard | Entered Materials 308 | -10/Materials | Build established: Mutant 362 | -10/Materials | Discovered new exit (range 6) 560 | -10/Materials | Discovered new exit (range 13) 843 | -10/Materials | Discovered new exit (range 6) 908 | -10/Materials | Repaired EM Pulse Gun 935 | -10/Materials | Repaired Aluminum Leg 1375 | -10/Materials | Build established: Scavenger-Mutant 1413 | -10/Materials | Discovered new exit (range 10) 1618 | -10/Materials | Discovered new exit (range 10) 1635 | -10/Materials | Entered Subcaves 1744 | -10/Subcaves | Discovered new exit (range 9) 1777 | -10/Subcaves | Entered Materials 1777 | -8/Materials | Evolved 4 slots: Propulsion x2, Utility x1, Weapon x1 1798 | -8/Materials | Identified exit to Garrison 1802 | -8/Materials | Entered Garrison 1846 | -8/Garrison | Triggered checkpoint 1876 | -8/Garrison | Garrison Relay disabled 2244 | -8/Garrison | Triggered checkpoint 2291 | -8/Garrison | Lost 7 parts (1p4n2w) 2366 | -8/Garrison | Discovered new exit (range 9) 2381 | -8/Garrison | Phase Generator disabled 2442 | -8/Garrison | Discovered new exit (range 50) 2442 | -8/Garrison | Discovered new exit (range 33) 2442 | -8/Garrison | Discovered new exit (range 90) 2450 | -8/Garrison | Triggered checkpoint 2455 | -8/Garrison | Garrison Relay disabled 2498 | -8/Garrison | Triggered checkpoint 2628 | -8/Garrison | Installed Relay Interface Framework 2721 | -8/Garrison | Rescued a captive Derelict 2722 | -8/Garrison | Rescued a captive Derelict 2728 | -8/Garrison | Triggered checkpoint 2745 | -8/Garrison | Garrison Relay disabled 2813 | -8/Garrison | Entered Materials 2813 | -8/Materials | Accompanied by 2 allies 3002 | -8/Materials | Core integrity fell below 50% 3119 | -8/Materials | Lost 6 parts (1p3n1u1w) 3284 | -8/Materials | Identified exit to Garrison 3285 | -8/Materials | Entered Garrison 3295 | -8/Garrison | Triggered checkpoint 3373 | -8/Garrison | Core integrity fell below 20% 3411 | -8/Garrison | Lost 3 parts (2n1w) 3456 | -8/Garrison | Self-destructed Last Messages --------------- 03379_ P-60 Hacker destroyed. 03380_ Aluminum Leg destroyed. 03382_ Destroyed Gravmag System. 03385_ Mic. Nuclear Core melted. 03385_ P-60 Hacker destroyed. 03392_ ,MXJS=XVUSH 03444_ Acquired 10 matter. 03449_ Jacked S-10 Pest... >>amplify_resonance Amplifying resonance, compromised power stability. 03450_ S-10 Pest Lgt. Ion Engine critical resonance detonation. 03450_ S-10 Pest destroyed. 03450_ Aluminum Leg destroyed. 03453_ S-10 Pest destroyed. Map ----- +----------------------------------------------------+ | ?????????????????????????????#######?? | | ?????????????????????????????# #?? | | ?????????????????????????????# #?? | | ?????????????????????????????# #?? | | ?????????????????????????????### #?? | | ???????????????????????????????# #?? | | ???????????????????????????????# #?? | | ???????????????????????????????# #?? | | ???????????????????????????????# #?? | | ???????????????????????????????# ### | | ???????????????????????????????# " # | | ???????????????????????????????# = #? | | ???????????????????????????????# ### | | ???????????????????????????????# # | | ???????????????????????????????# ! %# | | ???????????????????????????????# [[# | | ???????????????????????????????# ### | | ???????????????????????????????# #?? | | ???????????????????????????????# #?? | | ???????????????????????????????# #?? | | ???????????????????????????????# #?? | | ???????????####????????????????# #?? | | ???????????#;;###??????????????# #?? | | ??????????##!!; ################ #?? | | ??????????#!=*%*[ =!% #?? | | ??????????#! @ %[ [!%! #?? | | ??????????##!!####### ######### #?? | | ???????????####?????# #???????# #?? | | ????????????????????" #???????# #?? | | ????????????????????" ???????# #?? | | ????????????????????" "??????# #?? | | ????????????????????" "#?????# #?? | | ????????????????????" #"#?????? #?? | | ????????????????????# ###?????? ?? | | ????????????????????####???????? ?? | | ???????????????????????????????? ? | | ????????????????????????????????#####? | | ?????????????????????????????????????? | | ?????????????????????????????????????? | | ?????????????????????????????????????? | | ?????????????????????????????????????? | | ?????????????????????????????????????? | | ?????????????????????????????????????? | | ?????????????????????????????????????? | | ?????????????????????????????????????? | | ?????????????????????????????????????? | | ?????????????????????????????????????? | | ?????????????????????????????????????? | | ?????????????????????????????????????? | | ?????????????????????????????????????? | +----------------------------------------------------+ Best States ------------- Heat Dissipation 59 Energy Generation 18 Energy Capacity 310 Matter Stores 300 Matter Capacity 300 Sight Range 16 Terrain Scan Density 10 Armor Coverage 150 Evasion (%) 55 Recoil Reduction 3 Relay Coupler Types 2 Relay Coupler Value 40 Item Schematics ----------------- None Robot Schematics ------------------ None Fabricated ------------ Nothing Repaired ---------- EM Pulse Gun | 62% | -10/Materials Aluminum Leg | 77% | -10/Materials Alien Tech Used ----------------- None Achievements -------------- Error 47 Challenges ------------ None Game ------ Seed RagnarokEncryptedBrace Manual? 0 Play Time 00:23:33 Cumulative 202.3 hours Start 2025.10.20 @ 16:16:51 End 2025.10.20 @ 19:48:08 Sessions 3 Manual Loads 0 Difficulty Rogue Special Mode None Game No. 336 Rogue 334 Adventurer 0 Explorer 2 Win Type - Total 2 Types 1/0/0/1/0/0/0/0/0/0 Lore% 51 Gallery% 59 Achievement% 51 Wizard Run 0 Options --------- Layout 0 ASCII 0 Keyboard 1 Movement Arrows Keybinds 0 Fullscreen 1 Font 20/SmallcapsGlow Map View 41x30 Zoom Use 32% Tactical HUD 1 Map Filters NONE Filters NONE Steam 1 RUN: 3ac5c6a6-2461-43a6-bc43-578861969140